fUSD/lending_fUSD_20250311
["ID","MTS","AMOUNT","RATE_DAILY","PERIOD"]
[355933453,1741719036333,-638.29,8.995e-05,2]
[355933454,1741719036343,-1867.47,8.995e-05,2]
[355933455,1741719036354,-1913.32,8.995e-05,2]
[355933456,1741719036364,-500.0,8.995e-05,2]
[355933457,1741719036374,-500.0,8.995e-05,2]
[355933458,1741719036385,-877.73,8.995e-05,2]
[355933459,1741719036396,-500.0,8.995e-05,2]
[355933460,1741719036406,-775.51,8.995e-05,2]
[355933461,1741719036416,-903.02,8.995e-05,2]
[355933462,1741719036427,-2304.13,8.995e-05,2]
[355933463,1741719036437,-500.0,8.995e-05,2]
[355933464,1741719036447,-500.0,8.995e-05,2]
[355933465,1741719036457,-500.0,8.995e-05,2]
[355933466,1741719036468,-500.0,8.995e-05,2]
[355933467,1741719036478,-500.0,8.995e-05,2]
[355933468,1741719036488,-1975.27,8.995e-05,2]
[355933469,1741719036497,-668.36,8.995e-05,2]
[355933470,1741719036507,-2387.21,8.995e-05,2]
[355933471,1741719036517,-500.0,8.995e-05,2]
[355933472,1741719036527,-527.21,8.995e-05,2]
[355933473,1741719036541,-500.0,8.995e-05,2]
[355933474,1741719036551,-500.0,8.995e-05,2]
[355933475,1741719036561,-500.0,8.995e-05,2]
[355933476,1741719036571,-500.0,8.995e-05,2]
[355933477,1741719036581,-3357.2,8.995e-05,2]
[355933478,1741719036591,-2748.45,8.995e-05,2]
[355933479,1741719036601,-580.69,8.995e-05,2]
[355933480,1741719036610,-1246.66,8.995e-05,2]
[355933481,1741719036620,-562.78,8.995e-05,2]
[355933482,1741719036630,-500.0,8.995e-05,2]
[355933483,1741719036640,-732.12,8.995e-05,2]
[355933484,1741719036650,-500.0,8.995e-05,2]
[355933485,1741719036659,-500.0,8.995e-05,2]
[355933486,1741719036669,-500.0,8.995e-05,2]
[355933487,1741719036679,-500.0,8.995e-05,2]
[355933488,1741719036688,-1006.79,8.995e-05,2]
[355933489,1741719036698,-500.0,8.995e-05,2]
[355933490,1741719036708,-1421.22,8.995e-05,2]
[355933491,1741719036718,-513.41874289,8.995e-05,2]
[355933492,1741719036728,-1267.61,8.995e-05,2]
[355933493,1741719036738,-949.81,8.995e-05,2]
[355933494,1741719036747,-685.75,8.995e-05,2]
[355933495,1741719036758,-1010.33,8.995e-05,2]
[355933496,1741719036768,-500.0,8.995e-05,2]
[355933497,1741719036777,-500.0,8.995e-05,2]
[355933498,1741719036789,-2302.26,8.995e-05,2]
[355933499,1741719036800,-323.55134318,8.995e-05,2]
[355933500,1741719036810,-1328.76,8.995e-05,2]
[355933501,1741719036823,-430.32933717,8.995e-05,2]
[355933502,1741719036833,-500.0,8.995e-05,2]
[355933503,1741719036843,-500.0,8.995e-05,2]
[355933504,1741719036854,-846.89,8.995e-05,2]
[355933505,1741719036865,-500.0,8.995e-05,2]
[355933506,1741719036875,-548.38,8.995e-05,2]
[355933507,1741719036885,-500.0,8.995e-05,2]
[355933508,1741719036895,-2216.32,8.995e-05,2]
[355933509,1741719036905,-500.0,8.995e-05,2]
[355933510,1741719036916,-5731.35,8.995e-05,2]
[355933511,1741719036926,-500.0,8.995e-05,2]
[355933512,1741719036935,-500.0,8.995e-05,2]
[355933513,1741719036945,-500.0,8.995e-05,2]
[355933514,1741719036955,-4038.29,8.995e-05,2]
[355933515,1741719036965,-500.0,8.995e-05,2]
[355933516,1741719036975,-2314.45,8.995e-05,2]
[355933517,1741719036984,-500.0,8.995e-05,2]
[355933518,1741719036993,-960.38,8.995e-05,2]
[355933519,1741719037003,-509.36,8.995e-05,2]
[355933520,1741719037013,-545.63,8.995e-05,2]
[355933521,1741719037023,-500.0,8.995e-05,2]
[355933522,1741719037035,-509.81,8.995e-05,2]
[355933523,1741719037268,-500.0,8.995e-05,2]
[355933524,1741719037278,-500.0,8.995e-05,2]
[355933525,1741719037289,-500.0,8.995e-05,2]
[355933526,1741719037298,-646.68,8.995e-05,2]
[355933527,1741719037307,-1247.6,8.995e-05,2]
[355933528,1741719037316,-500.0,8.995e-05,2]
[355933529,1741719037326,-500.0,8.995e-05,2]
[355933530,1741719037336,-1124.51,8.995e-05,2]
[355933531,1741719037345,-1076.35,8.995e-05,2]
[355933532,1741719037354,-587.0201413,8.995e-05,2]
[355933533,1741719037364,-500.0,8.995e-05,2]
[355933534,1741719037373,-1561.92,8.995e-05,2]
[355933535,1741719037383,-1270.47,8.995e-05,2]
[355933536,1741719037392,-1081.92,8.995e-05,2]
[355933537,1741719037401,-547.18071791,8.995e-05,2]
[355933538,1741719037411,-500.0,8.996e-05,2]
[355933539,1741719037421,-500.0,8.996e-05,2]
[355933540,1741719037430,-500.0,8.996e-05,2]
[355933541,1741719037439,-1086.51,8.996e-05,2]
[355933542,1741719037449,-500.0,8.996e-05,2]
[355933543,1741719037459,-500.0,8.996e-05,2]
[355933544,1741719037468,-721.49,8.996e-05,2]
[355933545,1741719037478,-500.0,8.996e-05,2]
[355933546,1741719037488,-500.0,8.996e-05,2]
[355933547,1741719037498,-788.15,8.996e-05,2]
[355933548,1741719037507,-1053.94,8.996e-05,2]
[355933549,1741719037516,-500.0,8.996e-05,2]
[355933550,1741719037527,-1076.66,8.996e-05,2]
[355933551,1741719037538,-822.11,8.996e-05,2]
[355933552,1741719037548,-475.87977623,8.996e-05,2]
[355933553,1741719037640,-24.12022377,8.996e-05,2]
[355933554,1741719037650,-500.0,8.996e-05,2]
[355933555,1741719037660,-111.10979631,8.996e-05,2]
[355933556,1741719037672,-388.89020369,8.996e-05,2]
[355933557,1741719037682,-500.0,8.996e-05,2]
[355933558,1741719037691,-500.0,8.996e-05,2]
[355933559,1741719037700,-801.67,8.996e-05,2]
[355933560,1741719037719,-500.0,8.996e-05,2]
[355933561,1741719037731,-500.0,8.996e-05,2]
[355933562,1741719037741,-500.0,8.996e-05,2]
[355933563,1741719037751,-500.0,8.996e-05,2]
[355933564,1741719037761,-500.0,8.996e-05,2]
[355933565,1741719037771,-654.19,8.996e-05,2]
[355933566,1741719037780,-500.0,8.996e-05,2]
[355933567,1741719037792,-500.0,8.996e-05,2]
[355933568,1741719037805,-509.71028655,8.996e-05,2]
[355933649,1741719039558,1000.0,8.219e-05,2]
[355933664,1741719040260,-500.0,8.995e-05,2]
[355933665,1741719040271,-331.98,8.995e-05,2]
[355933666,1741719040283,-168.02,8.995e-05,2]
[355933667,1741719040297,-623.07971345,8.996e-05,2]
[355933668,1741719040307,-692.4,8.996e-05,2]
[355933670,1741719040317,-611.25757467,8.996e-05,2]
[355933672,1741719040327,-500.0,8.996e-05,2]
[355933673,1741719040338,-500.0,8.996e-05,2]
[355933674,1741719040348,-500.0,8.996e-05,2]
[355933675,1741719040358,-508.73,8.996e-05,2]
[355933676,1741719040368,-724.23498577,8.996e-05,2]
[355933677,1741719040381,-719.43501423,8.996e-05,2]
[355933678,1741719040390,-500.0,8.996e-05,2]
[355933679,1741719040400,-671.08,8.996e-05,2]
[355933680,1741719040410,-500.0,8.996e-05,2]
[355933681,1741719040419,-500.0,8.996e-05,2]
[355933682,1741719040429,-500.0,8.996e-05,2]
[355933683,1741719040439,-207.5793969,8.996e-05,2]
[355933684,1741719040448,-500.0,8.996e-05,2]
[355933685,1741719040458,-674.24,8.996e-05,2]
[355933686,1741719040467,-102.66558887,8.996e-05,2]
[355933687,1741719040479,-397.33441113,8.996e-05,2]
[355933688,1741719040489,-1808.37,8.996e-05,2]
[355933689,1741719040498,-500.0,8.996e-05,2]
[355933690,1741719040507,-500.0,8.996e-05,2]
[355933691,1741719040517,-500.0,8.996e-05,2]
[355933692,1741719040527,-606.66,8.996e-05,2]
[355933693,1741719040540,-500.0,8.996e-05,2]
[355933694,1741719040550,-500.0,8.996e-05,2]
[355933695,1741719040560,-1604.67,8.996e-05,2]
[355933696,1741719040570,-500.0,8.996e-05,2]
[355933697,1741719040581,-501.90997162,8.996e-05,2]
[355933698,1741719040590,-500.0,8.996e-05,2]
[355933699,1741719040600,-500.0,8.996e-05,2]
[355933700,1741719040609,-510.18,8.996e-05,2]
[355933701,1741719040619,-500.0,8.996e-05,2]
[355933702,1741719040629,-547.36766832,8.996e-05,2]
[355933703,1741719040638,-500.0,8.996e-05,2]
[355933704,1741719040648,-743.27,8.996e-05,2]
[355933705,1741719040658,-580.80229765,8.996e-05,2]
[355933706,1741719040670,-500.0,8.996e-05,2]
[355933707,1741719040681,-500.0,8.996e-05,2]
[355933708,1741719040692,-908.27,8.996e-05,2]
[355933709,1741719040702,-412.64784544,8.996e-05,2]
[355933710,1741719040749,-185.43215456,8.996e-05,2]
[355933711,1741719040759,-191.61247962,8.996e-05,2]
[355933712,1741719040771,-308.38752038,8.996e-05,2]
[355933713,1741719040781,-1322.61247962,8.996e-05,2]
[355933714,1741719040871,-177.38752038,8.996e-05,2]
[355933715,1741719040883,-803.36,8.996e-05,2]
[355933716,1741719040894,-89.96079623,8.996e-05,2]
[355933717,1741719040906,-505.79920377,8.996e-05,2]
[355933718,1741719040917,-500.0,8.996e-05,2]
[355933719,1741719040927,-626.8,8.996e-05,2]
[355933720,1741719040938,-512.61,8.996e-05,2]
[355933721,1741719040947,-278.10621408,8.996e-05,2]
[355933722,1741719040958,-500.0,8.996e-05,2]
[355933723,1741719040968,-529.12,8.996e-05,2]
[355933725,1741719040978,-500.0,8.996e-05,2]
[355933727,1741719040988,-500.0,8.996e-05,2]
[355933729,1741719040997,-208.09776047,8.996e-05,2]
[355933731,1741719041007,-299.54379902,8.996e-05,2]
[355933733,1741719041019,-292.46269493,8.996e-05,2]
[355933735,1741719041029,-481.20030508,8.996e-05,2]
[355933738,1741719041043,-689.37969492,8.996e-05,2]
[355933739,1741719041052,-500.0,8.996e-05,2]
[355933741,1741719041061,-500.0,8.996e-05,2]
[355933743,1741719041070,-500.0,8.996e-05,2]
[355933745,1741719041079,-500.0,8.996e-05,2]
[355933747,1741719041089,-500.0,8.996e-05,2]
[355933749,1741719041099,-500.0,8.996e-05,2]
[355933752,1741719041109,-500.0,8.996e-05,2]
[355933755,1741719041119,-500.0,8.996e-05,2]
[355933757,1741719041129,-500.0,8.996e-05,2]
[355933759,1741719041139,-500.0,8.996e-05,2]
[355933761,1741719041149,-500.0,8.996e-05,2]
[355933763,1741719041159,-500.0,8.996e-05,2]
[355933765,1741719041169,-500.0,8.996e-05,2]
[355933767,1741719041178,-1615.47,8.996e-05,2]
[355933769,1741719041188,-234.98492309,8.996e-05,2]
[355933771,1741719041200,-265.01507691,8.996e-05,2]
[355933773,1741719041210,-500.0,8.996e-05,2]
[355933776,1741719041221,-500.0,8.996e-05,2]
[355933777,1741719041231,-500.0,8.996e-05,2]
[355933780,1741719041241,-500.0,8.996e-05,2]
[355933781,1741719041251,-512.84,8.996e-05,2]
[355933783,1741719041260,-1315.84,8.996e-05,2]
[355933785,1741719041270,-500.0,8.996e-05,2]
[355933787,1741719041280,-771.84,8.996e-05,2]
[355933789,1741719041292,-146.51724801,8.996e-05,2]
[355933791,1741719041305,-492.63275199,8.996e-05,2]
[355933794,1741719041315,-500.0,8.996e-05,2]
[355933795,1741719041325,-500.0,8.996e-05,2]
[355933797,1741719041335,-500.0,8.996e-05,2]
[355933799,1741719041345,-500.0,8.996e-05,2]
[355933801,1741719041355,-1596.99,8.996e-05,2]
[355933803,1741719041365,-500.0,8.996e-05,2]
[355933805,1741719041375,-500.0,8.996e-05,2]
[355933807,1741719041384,-500.0,8.996e-05,2]
[355933809,1741719041394,-500.0,8.996e-05,2]
[355933811,1741719041404,-536.68,8.996e-05,2]
[355933813,1741719041414,-758.42,8.996e-05,2]
[355933815,1741719041424,-500.0,8.996e-05,2]
[355933817,1741719041435,-500.0,8.996e-05,2]
[355933819,1741719041444,-632.74,8.996e-05,2]
[355933821,1741719041455,-500.0,8.996e-05,2]
[355933823,1741719041465,-773.11,8.996e-05,2]
[355933825,1741719041475,-500.0,8.996e-05,2]
[355933827,1741719041485,-503.53,8.996e-05,2]
[355933829,1741719041495,-500.0,8.996e-05,2]
[355933831,1741719041505,-500.0,8.996e-05,2]
[355933833,1741719041514,-500.0,8.996e-05,2]
[355933835,1741719041524,-500.0,8.996e-05,2]
[355933837,1741719041534,-500.0,8.996e-05,2]
[355933839,1741719041547,-500.0,8.996e-05,2]
[355933841,1741719041558,-500.0,8.996e-05,2]
[355933843,1741719041567,-500.0,8.996e-05,2]
[355933845,1741719041578,-500.0,8.996e-05,2]
[355933847,1741719041588,-500.0,8.996e-05,2]
[355933849,1741719041597,-1440.2,8.996e-05,2]
[355933851,1741719041608,-1617.82,8.996e-05,2]
[355933853,1741719041618,-497.93469673,8.996e-05,2]
[355933856,1741719041638,-2.06530327,8.996e-05,2]
[355933858,1741719041648,-500.0,8.996e-05,2]
[355933860,1741719041658,-500.0,8.996e-05,2]
[355933862,1741719041668,-741.5,8.996e-05,2]
[355933864,1741719041677,-1598.18,8.996e-05,2]
[355933866,1741719041687,-500.0,8.996e-05,2]
[355933867,1741719041697,-806.62,8.996e-05,2]
[355933868,1741719041707,-500.0,8.996e-05,2]
[355933869,1741719041717,-563.31,8.996e-05,2]
[355933870,1741719041726,-956.93,8.996e-05,2]
[355933871,1741719041736,-627.39,8.996e-05,2]
[355933872,1741719041746,-500.0,8.996e-05,2]
[355933873,1741719041755,-500.0,8.996e-05,2]
[355933874,1741719041765,-1462.67,8.996e-05,2]
[355933875,1741719041774,-822.92,8.996e-05,2]
[355933876,1741719041784,-500.0,8.996e-05,2]
[355933877,1741719041796,-218.41469673,8.996e-05,2]
[355933878,1741719041817,-281.58530327,8.996e-05,2]
[355933879,1741719041828,-500.0,8.996e-05,2]
[355933880,1741719041839,-50.33170072,8.996e-05,2]
[355933881,1741719042157,-449.66829928,8.996e-05,2]
[355933882,1741719042167,-13.43413763,8.996e-05,2]
[355933883,1741719042178,-484.95530573,8.996e-05,2]
[355933884,1741719042190,-1.61055664,8.996e-05,2]
[355933885,1741719042200,-500.0,8.996e-05,2]
[355933886,1741719042210,-500.0,8.996e-05,2]
[355933887,1741719042220,-500.0,8.996e-05,2]
[355933888,1741719042230,-500.0,8.996e-05,2]
[355933889,1741719042239,-500.0,8.996e-05,2]
[355933890,1741719042249,-500.0,8.996e-05,2]
[355933891,1741719042259,-1869.78,8.996e-05,2]
[355933892,1741719042270,-1961.88,8.996e-05,2]
[355933893,1741719042280,-1530.19,8.996e-05,2]
[355933894,1741719042291,-500.0,8.996e-05,2]
[355933895,1741719042300,-1859.74,8.996e-05,2]
[355933896,1741719042310,-1972.76,8.996e-05,2]
[355933897,1741719042320,-500.0,8.996e-05,2]
[355933898,1741719042534,-525.93,8.996e-05,2]
[355933899,1741719042546,-270.55510574,8.996e-05,2]
[355933900,1741719042556,-536.3373593,8.996e-05,2]
[355933901,1741719042565,-1152.91,8.996e-05,2]
[355933902,1741719042575,-500.0,8.996e-05,2]
[355933903,1741719042584,-364.05971706,8.996e-05,2]
[355933904,1741719042594,-500.0,8.996e-05,2]
[355933905,1741719042603,-500.0,8.996e-05,2]
[355933906,1741719042613,-867.16,8.996e-05,2]
[355933907,1741719042622,-500.0,8.996e-05,2]
[355933908,1741719042631,-1045.17,8.996e-05,2]
[355933909,1741719042641,-639.57,8.996e-05,2]
[355933910,1741719042651,-637.55157589,8.996e-05,2]
[355933911,1741719042660,-500.0,8.996e-05,2]
[355933912,1741719042670,-500.0,8.996e-05,2]
[355933913,1741719042681,-585.82,8.996e-05,2]
[355933914,1741719042691,-691.89,8.996e-05,2]
[355933915,1741719042700,-529.67,8.996e-05,2]
[355933916,1741719042711,-584.37,8.996e-05,2]
[355933917,1741719042722,-500.0,8.996e-05,2]
[355933918,1741719042731,-500.0,8.996e-05,2]
[355933919,1741719042741,-500.0,8.996e-05,2]
[355933920,1741719042750,-500.0,8.996e-05,2]
[355933921,1741719042760,-722.8,8.996e-05,2]
[355933922,1741719042769,-500.0,8.996e-05,2]
[355933923,1741719042779,-500.0,8.996e-05,2]
[355933924,1741719042789,-386.09557231,8.996e-05,2]
[355933925,1741719042798,-2487.6154955,8.996e-05,2]
[355933926,1741719042813,-2373.0545045,8.996e-05,2]
[355933927,1741719042822,-500.0,8.996e-05,2]
[355933928,1741719042832,-2048.32,8.996e-05,2]
[355933929,1741719042841,-500.0,8.996e-05,2]
[355933930,1741719042851,-581.41,8.996e-05,2]
[355933931,1741719042861,-500.0,8.996e-05,2]
[355933932,1741719042870,-980.05,8.996e-05,2]
[355933933,1741719042880,-500.0,8.996e-05,2]
[355933934,1741719042893,-702.58,8.996e-05,2]
[355933935,1741719042902,-500.0,8.996e-05,2]
[355933936,1741719042912,-677.62,8.996e-05,2]
[355933937,1741719042921,-2033.0,8.996e-05,2]
[355933938,1741719042931,-500.0,8.996e-05,2]
[355933939,1741719042941,-500.0,8.996e-05,2]
[355933940,1741719042950,-644.81,8.996e-05,2]
[355933941,1741719042960,-500.0,8.996e-05,2]
[355933942,1741719042969,-500.0,8.996e-05,2]
[355933943,1741719042979,-500.0,8.996e-05,2]
[355933944,1741719042988,-500.0,8.996e-05,2]
[355933945,1741719042997,-500.0,8.996e-05,2]
[355933946,1741719043007,-500.0,8.996e-05,2]
[355933947,1741719043017,-1278.0,8.996e-05,2]
[355933948,1741719043027,-500.0,8.996e-05,2]
[355933949,1741719043038,-1179.22,8.996e-05,2]
[355933950,1741719043048,-500.0,8.996e-05,2]
[355933951,1741719043058,-536.46,8.996e-05,2]
[355933952,1741719043068,-717.54,8.996e-05,2]
[355933953,1741719043078,-522.83536092,8.996e-05,2]
[355933954,1741719043089,-500.0,8.996e-05,2]
[355933955,1741719043098,-500.0,8.996e-05,2]
[355933956,1741719043108,-1230.61,8.996e-05,2]
[355933957,1741719043118,-500.0,8.996e-05,2]
[355933958,1741719043128,-1628.44,8.996e-05,2]
[355933959,1741719043138,-1418.0,8.996e-05,2]
[355933960,1741719043148,-501.8506705,8.996e-05,2]
[355933961,1741719043158,-1038.46,8.996e-05,2]
[355933963,1741719043168,-571.0,8.996e-05,2]
[355933965,1741719043178,-1265.25,8.996e-05,2]
[355933966,1741719043187,-514.59,8.996e-05,2]
[355933967,1741719043197,-500.0,8.996e-05,2]
[355933968,1741719043207,-500.0,8.996e-05,2]
[355933969,1741719043217,-500.0,8.996e-05,2]
[355933970,1741719043226,-500.0,8.996e-05,2]
[355933971,1741719043236,-1070.13,8.996e-05,2]
[355933972,1741719043245,-500.0,8.996e-05,2]
[355933973,1741719043255,-1331.75,8.996e-05,2]
[355933974,1741719043264,-596.43,8.996e-05,2]
[355933975,1741719043274,-1343.43,8.996e-05,2]
[355933976,1741719043283,-500.0,8.996e-05,2]
[355933977,1741719043294,-786.0,8.996e-05,2]
[355933979,1741719043304,-500.0,8.996e-05,2]
[355933982,1741719043314,-924.36,8.996e-05,2]
[355933986,1741719043323,-1124.91,8.996e-05,2]
[355933989,1741719043333,-500.0,8.996e-05,2]
[355933992,1741719043343,-500.0,8.996e-05,2]
[355933994,1741719043352,-2977.37,8.996e-05,2]
[355933996,1741719043362,-500.0,8.996e-05,2]
[355933998,1741719043371,-500.0,8.996e-05,2]
[355934000,1741719043382,-500.0,8.996e-05,2]
[355934002,1741719043391,-1428.0,8.996e-05,2]
[355934003,1741719043401,-500.0,8.996e-05,2]
[355934005,1741719043411,-1270.0,8.996e-05,2]
[355934006,1741719043421,-500.0,8.996e-05,2]
[355934007,1741719043431,-1578.0,8.996e-05,2]
[355934009,1741719043440,-1067.32,8.996e-05,2]
[355934011,1741719043450,-500.0,8.996e-05,2]
[355934014,1741719043459,-907.0,8.996e-05,2]
[355934017,1741719043469,-525.99795256,8.996e-05,2]
[355934020,1741719043478,-500.0,8.996e-05,2]
[355934023,1741719043487,-500.0,8.996e-05,2]
[355934026,1741719043497,-500.0,8.996e-05,2]
[355934028,1741719043506,-500.0,8.996e-05,2]
[355934030,1741719043515,-500.0,8.996e-05,2]
[355934032,1741719043525,-1726.14,8.996e-05,2]
[355934034,1741719043534,-500.0,8.996e-05,2]
[355934036,1741719043545,-587.5,8.996e-05,2]
[355934038,1741719043554,-699.84,8.996e-05,2]
[355934039,1741719043563,-500.0,8.996e-05,2]
[355934040,1741719043573,-500.0,8.996e-05,2]
[355934041,1741719043582,-500.0,8.996e-05,2]
[355934042,1741719043592,-541.0,8.996e-05,2]
[355934043,1741719043601,-500.0,8.996e-05,2]
[355934044,1741719043611,-1865.89,8.996e-05,2]
[355934045,1741719043621,-2032.79,8.996e-05,2]
[355934046,1741719043630,-500.0,8.996e-05,2]
[355934047,1741719043640,-1905.14,8.996e-05,2]
[355934048,1741719043651,-848.41,8.996e-05,2]
[355934049,1741719043660,-623.58,8.996e-05,2]
[355934050,1741719043670,-500.0,8.996e-05,2]
[355934051,1741719043680,-500.0,8.996e-05,2]
[355934052,1741719043690,-500.0,8.996e-05,2]
[355934053,1741719043699,-500.0,8.996e-05,2]
[355934054,1741719043709,-500.0,8.996e-05,2]
[355934055,1741719043719,-500.0,8.996e-05,2]
[355934056,1741719043729,-551.96790351,8.996e-05,2]
[355934057,1741719043740,-500.0,8.996e-05,2]
[355934058,1741719043750,-500.0,8.996e-05,2]
[355934059,1741719043759,-776.77,8.996e-05,2]
[355934060,1741719043769,-500.0,8.996e-05,2]
[355934061,1741719043780,-500.0,8.996e-05,2]
[355934062,1741719043793,-4077.0,8.996e-05,2]
[355934063,1741719043807,-229.37758101,8.996e-05,2]
[355934064,1741719043817,-1135.82,8.996e-05,2]
[355934065,1741719043827,-500.0,8.996e-05,2]
[355934066,1741719043837,-541.06297339,8.996e-05,2]
[355934067,1741719043848,-500.0,8.996e-05,2]
[355934068,1741719043859,-500.0,8.996e-05,2]
[355934069,1741719043868,-500.0,8.996e-05,2]
[355934070,1741719043877,-1933.65,8.996e-05,2]
[355934071,1741719043890,-802.23,8.996e-05,2]
[355934072,1741719043900,-1344.87,8.996e-05,2]
[355934073,1741719043910,-1294.91,8.996e-05,2]
[355934074,1741719043920,-1734.55,8.996e-05,2]
[355934075,1741719043930,-1578.21,8.996e-05,2]
[355934076,1741719043939,-1132.91,8.996e-05,2]
[355934077,1741719043948,-1026.02,8.996e-05,2]
[355934078,1741719043959,-500.0,8.996e-05,2]
[355934079,1741719043969,-519.55,8.996e-05,2]
[355934080,1741719043979,-500.0,8.996e-05,2]
[355934081,1741719043989,-669.1,8.996e-05,2]
[355934082,1741719043998,-500.0,8.996e-05,2]
[355934083,1741719044008,-1100.81,8.996e-05,2]
[355934084,1741719044017,-1704.59,8.996e-05,2]
[355934085,1741719044027,-500.0,8.996e-05,2]
[355934086,1741719044036,-1308.0,8.996e-05,2]
[355934087,1741719044048,-7340.56,8.996e-05,2]
[355934088,1741719044058,-1445.88,8.996e-05,2]
[355934089,1741719044068,-617.82083891,8.996e-05,2]
[355934090,1741719044078,-757.73,8.996e-05,2]
[355934091,1741719044088,-500.0,8.996e-05,2]
[355934092,1741719044098,-648.13,8.996e-05,2]
[355934093,1741719044109,-1218.26,8.996e-05,2]
[355934094,1741719044119,-500.0,8.996e-05,2]
[355934095,1741719044129,-1657.75,8.996e-05,2]
[355934096,1741719044139,-500.0,8.996e-05,2]
[355934097,1741719044149,-500.0,8.996e-05,2]
[355934098,1741719044159,-500.0,8.996e-05,2]
[355934099,1741719044170,-571.88,8.996e-05,2]
[355934100,1741719044181,-507.85513319,8.996e-05,2]
[355934101,1741719044191,-615.23,8.996e-05,2]
[355934102,1741719044203,-500.0,8.996e-05,2]
[355934103,1741719044213,-1598.78,8.996e-05,2]
[355934104,1741719044224,-500.0,8.996e-05,2]
[355934105,1741719044234,-500.0,8.996e-05,2]
[355934106,1741719044244,-500.0,8.996e-05,2]
[355934107,1741719044254,-500.0,8.996e-05,2]
[355934108,1741719044264,-601.66,8.996e-05,2]
[355934109,1741719044274,-1049.76,8.996e-05,2]
[355934110,1741719044283,-644.71,8.996e-05,2]
[355934111,1741719044297,-500.0,8.996e-05,2]
[355934112,1741719044307,-5022.51,8.996e-05,2]
[355934113,1741719044316,-500.0,8.996e-05,2]
[355934114,1741719044326,-1104.38,8.996e-05,2]
[355934115,1741719044337,-500.0,8.996e-05,2]
[355934116,1741719044346,-500.0,8.996e-05,2]
[355934117,1741719044357,-1071.63,8.996e-05,2]
[355934118,1741719044366,-500.0,8.996e-05,2]
[355934119,1741719044376,-1588.68,8.996e-05,2]
[355934120,1741719044386,-518.87505244,8.996e-05,2]
[355934121,1741719044395,-500.0,8.996e-05,2]
[355934122,1741719044404,-500.0,8.996e-05,2]
[355934123,1741719044414,-510.67373008,8.996e-05,2]
[355934124,1741719044423,-500.0,8.996e-05,2]
[355934125,1741719044433,-625.03,8.996e-05,2]
[355934126,1741719044442,-512.53,8.996e-05,2]
[355934127,1741719044451,-1287.59,8.996e-05,2]
[355934128,1741719044461,-500.0,8.996e-05,2]
[355934129,1741719044470,-500.0,8.996e-05,2]
[355934130,1741719044480,-857.27,8.996e-05,2]
[355934131,1741719044490,-552.54,8.996e-05,2]
[355934132,1741719044499,-263.85103964,8.996e-05,2]
[355934133,1741719044510,-500.0,8.996e-05,2]
[355934134,1741719044519,-500.0,8.996e-05,2]
[355934135,1741719044528,-500.0,8.996e-05,2]
[355934136,1741719044537,-500.0,8.996e-05,2]
[355934137,1741719044549,-581.26,8.996e-05,2]
[355934138,1741719044558,-500.0,8.996e-05,2]
[355934139,1741719044567,-500.0,8.996e-05,2]
[355934140,1741719044577,-500.0,8.996e-05,2]
[355934141,1741719044587,-500.0,8.996e-05,2]
[355934142,1741719044597,-1012.0,8.996e-05,2]
[355934143,1741719044607,-938.79,8.996e-05,2]
[355934144,1741719044616,-500.0,8.996e-05,2]
[355934145,1741719044626,-500.0,8.996e-05,2]
[355934146,1741719044636,-3932.0,8.996e-05,2]
[355934147,1741719044645,-500.0,8.996e-05,2]
[355934148,1741719044654,-1247.65,8.996e-05,2]
[355934149,1741719044664,-500.0,8.996e-05,2]
[355934150,1741719044674,-1094.81,8.996e-05,2]
[355934151,1741719044684,-557.00286555,8.996e-05,2]
[355934152,1741719044693,-740.11,8.996e-05,2]
[355934153,1741719044703,-500.0,8.996e-05,2]
[355934154,1741719044713,-500.0,8.996e-05,2]
[355934155,1741719044722,-150.0,8.996e-05,2]
[355934156,1741719044732,-1174.98,8.996e-05,2]
[355934157,1741719044742,-899.3,8.996e-05,2]